[Event "*** Titled Tuesday Blitz"]
[Site "Chess.com"]
[Date "2018.06.05"]
[Round "3"]
[White "Rish_97"]
[Black "Ind1anStar"]
[Result "0-1"]
[WhiteElo "2283"]
[BlackElo "2403"]
[TimeControl "180+2"]
[EndTime "13:41:59 PDT"]
[Termination "Ind1anStar won by resignation"]

1. e4 {[%clk 0:03:01.9]} 1... e6 {[%clk 0:03:00.4]} 2. d4 {[%clk 0:02:59.1]}
2... d5 {[%clk 0:03:01.5]} 3. Nd2 {[%clk 0:03:00.7]} 3... Nc6 {[%clk 0:03:01.4]}
4. Ngf3 {[%clk 0:03:00.2]} 4... Nf6 {[%clk 0:03:02]} 5. e5 {[%clk 0:03:01.3]}
5... Nd7 {[%clk 0:03:02.9]} 6. Nb3 {[%clk 0:02:58.9]} 6... f6 {[%clk 0:03:00.4]}
7. exf6 {[%clk 0:02:55.4]} 7... Qxf6 {[%clk 0:03:01.1]} 8. Be2 {[%clk
0:02:56.4]} 8... Bd6 {[%clk 0:03:01.8]} 9. O-O {[%clk 0:02:57.1]} 9... O-O
{[%clk 0:03:02.6]} 10. c4 {[%clk 0:02:54]} 10... Bf4 {[%clk 0:02:53.5]} 11. Re1
{[%clk 0:02:50.3]} 11... Ne7 {[%clk 0:02:42.2]} 12. Bf1 {[%clk 0:02:33.4]} 12...
Ng6 {[%clk 0:02:35.2]} 13. Bxf4 {[%clk 0:02:12.7]} 13... Nxf4 {[%clk 0:02:34.2]}
14. Ne5 {[%clk 0:01:30.8]} 14... Qg5 {[%clk 0:02:04.3]} 15. g3 {[%clk
0:01:26.2]} 15... Nxe5 {[%clk 0:01:45.4]} 16. Rxe5 {[%clk 0:01:20]} 16... Rf5
{[%clk 0:01:31.5]} 17. Rxf5 {[%clk 0:01:09.5]} 17... exf5 {[%clk 0:01:33.4]} 18.
Qd2 {[%clk 0:01:08.9]} 18... Ne6 {[%clk 0:01:31.6]} 19. Qxg5 {[%clk 0:01:09.5]}
19... Nxg5 {[%clk 0:01:33.5]} 20. cxd5 {[%clk 0:01:10.3]} 20... a5 {[%clk
0:01:30.5]} 21. h4 {[%clk 0:01:02.8]} 21... a4 {[%clk 0:01:05.9]} 22. hxg5
{[%clk 0:01:02.7]} 22... axb3 {[%clk 0:01:06.8]} 23. Bc4 {[%clk 0:00:54.7]}
23... Rxa2 {[%clk 0:00:59.6]} 24. Rxa2 {[%clk 0:00:50.5]} 24... bxa2 {[%clk
0:01:00.4]} 25. Bxa2 {[%clk 0:00:51.3]} 25... Kf8 {[%clk 0:01:01.1]} 26. Kg2
{[%clk 0:00:47.7]} 26... Ke7 {[%clk 0:01:01.9]} 27. Kf3 {[%clk 0:00:49.1]} 27...
Kd6 {[%clk 0:01:02.7]} 28. Kf4 {[%clk 0:00:50.6]} 28... g6 {[%clk 0:01:03]} 29.
Bc4 {[%clk 0:00:46.4]} 29... Bd7 {[%clk 0:01:03]} 30. Ke3 {[%clk 0:00:15]} 30...
Be8 {[%clk 0:00:04.7]} 31. f4 {[%clk 0:00:13.1]} 31... Bf7 {[%clk 0:00:06.1]}
32. Be2 {[%clk 0:00:13.9]} 32... Bxd5 {[%clk 0:00:07.5]} 33. g4 {[%clk
0:00:15.2]} 33... Be4 {[%clk 0:00:08.6]} 34. gxf5 {[%clk 0:00:15.7]} 34... Bxf5
{[%clk 0:00:10.1]} 35. Bc4 {[%clk 0:00:17.2]} 35... c6 {[%clk 0:00:10.4]} 36.
Bg8 {[%clk 0:00:17.8]} 36... b5 {[%clk 0:00:09.4]} 37. Bxh7 {[%clk 0:00:18.7]}
37... c5 {[%clk 0:00:10.7]} 38. Bg8 {[%clk 0:00:19.2]} 38... c4 {[%clk
0:00:10.8]} 39. Bf7 {[%clk 0:00:19.3]} 39... Bd3 {[%clk 0:00:10.5]} 40. d5
{[%clk 0:00:18.5]} 40... Kc5 {[%clk 0:00:11.5]} 41. Be6 {[%clk 0:00:19.7]} 41...
b4 {[%clk 0:00:11.3]} 42. f5 {[%clk 0:00:20.8]} 42... gxf5 {[%clk 0:00:10.2]}
43. Kd2 {[%clk 0:00:20.9]} 43... f4 {[%clk 0:00:11.2]} 44. Ke1 {[%clk
0:00:20.5]} 44... Kd6 {[%clk 0:00:12.6]} 45. Kf2 {[%clk 0:00:21.1]} 45... Ke5
{[%clk 0:00:13.8]} 46. Kf3 {[%clk 0:00:22.5]} 46... c3 {[%clk 0:00:15]} 47. bxc3
{[%clk 0:00:23.7]} 47... bxc3 {[%clk 0:00:15.9]} 48. d6 {[%clk 0:00:24.5]} 48...
Kxe6 {[%clk 0:00:16.6]} 0-1

[Event "*** Titled Tuesday Blitz"]
[Site "Chess.com"]
[Date "2018.06.05"]
[Round "3"]
[White "Patzel09"]
[Black "nailbeshirli"]
[Result "1-0"]
[WhiteElo "2588"]
[BlackElo "2505"]
[TimeControl "180+2"]
[EndTime "13:42:08 PDT"]
[Termination "Patzel09 won by resignation"]

1. e4 {[%clk 0:03:01.9]} 1... c6 {[%clk 0:02:59.1]} 2. c4 {[%clk 0:03:02.5]}
2... e5 {[%clk 0:02:58.8]} 3. Nc3 {[%clk 0:03:02.5]} 3... g6 {[%clk 0:02:59]} 4.
Nf3 {[%clk 0:03:03.6]} 4... Bg7 {[%clk 0:03:00.1]} 5. d4 {[%clk 0:03:04.2]} 5...
exd4 {[%clk 0:03:02]} 6. Nxd4 {[%clk 0:03:04.9]} 6... Ne7 {[%clk 0:03:03.9]} 7.
Be2 {[%clk 0:03:00.9]} 7... O-O {[%clk 0:03:03.4]} 8. O-O {[%clk 0:03:02]} 8...
d5 {[%clk 0:03:05]} 9. cxd5 {[%clk 0:02:58.6]} 9... cxd5 {[%clk 0:03:06.9]} 10.
exd5 {[%clk 0:02:42.5]} 10... Nxd5 {[%clk 0:03:08.8]} 11. Nxd5 {[%clk 0:02:43]}
11... Qxd5 {[%clk 0:03:10.7]} 12. Be3 {[%clk 0:02:43.6]} 12... Na6 {[%clk
0:03:04.6]} 13. Bf3 {[%clk 0:02:42.8]} 13... Qa5 {[%clk 0:03:03.1]} 14. Qb3
{[%clk 0:02:38.6]} 14... Nc5 {[%clk 0:03:01.1]} 15. Qb5 {[%clk 0:02:36.8]} 15...
Qxb5 {[%clk 0:02:56.7]} 16. Nxb5 {[%clk 0:02:38.7]} 16... Ne6 {[%clk 0:02:46.8]}
17. Rfd1 {[%clk 0:02:34]} 17... Bxb2 {[%clk 0:02:41.4]} 18. Rab1 {[%clk
0:02:31.7]} 18... Be5 {[%clk 0:02:42.6]} 19. Nxa7 {[%clk 0:02:30.8]} 19... Ng5
{[%clk 0:01:31.3]} 20. Bxb7 {[%clk 0:02:20.3]} 20... Bxb7 {[%clk 0:01:30.3]} 21.
Rxb7 {[%clk 0:02:22.2]} 21... Ne4 {[%clk 0:01:30.7]} 22. a4 {[%clk 0:02:14]}
22... Nc3 {[%clk 0:01:31.2]} 23. Rdd7 {[%clk 0:02:11.9]} 23... Nxa4 {[%clk
0:01:30.1]} 24. g4 {[%clk 0:02:12.5]} 24... Rab8 {[%clk 0:01:26.6]} 25. Rxb8
{[%clk 0:02:09.5]} 25... Bxb8 {[%clk 0:01:28.5]} 26. Nc6 {[%clk 0:02:10.4]}
26... Re8 {[%clk 0:01:21.4]} 27. Kg2 {[%clk 0:02:04.4]} 27... h5 {[%clk
0:01:07.5]} 28. g5 {[%clk 0:01:58.7]} 28... Nc3 {[%clk 0:01:06.9]} 29. Nd8
{[%clk 0:01:57.5]} 29... Be5 {[%clk 0:00:34.4]} 30. Nxf7 {[%clk 0:01:55.5]}
30... Bg7 {[%clk 0:00:35.9]} 31. Nh6+ {[%clk 0:01:52.4]} 31... Kh8 {[%clk
0:00:36.8]} 32. Rxg7 {[%clk 0:01:51.4]} 32... Kxg7 {[%clk 0:00:37.3]} 33. Bd4+
{[%clk 0:01:52.3]} 33... Kh7 {[%clk 0:00:38.8]} 34. Bxc3 {[%clk 0:01:53]} 34...
Re7 {[%clk 0:00:40.4]} 35. Bf6 {[%clk 0:01:48.9]} 35... Rd7 {[%clk 0:00:41.4]}
36. Kf3 {[%clk 0:01:47.9]} 36... Rd3+ {[%clk 0:00:42.3]} 37. Ke4 {[%clk
0:01:46.3]} 37... Rd7 {[%clk 0:00:42.7]} 38. Bd4 {[%clk 0:01:39.8]} 38... Re7+
{[%clk 0:00:42.7]} 39. Be5 {[%clk 0:01:39]} 39... Ra7 {[%clk 0:00:43.7]} 40. Kd5
{[%clk 0:01:38.1]} 40... Ra2 {[%clk 0:00:44.1]} 41. f3 {[%clk 0:01:33.9]} 41...
Rf2 {[%clk 0:00:41.8]} 42. Ke4 {[%clk 0:01:30.8]} 42... Re2+ {[%clk 0:00:42.5]}
43. Kd4 {[%clk 0:01:27.5]} 43... Rf2 {[%clk 0:00:43.6]} 44. Ke3 {[%clk
0:01:25.1]} 44... Rf1 {[%clk 0:00:41.1]} 45. Nf7 {[%clk 0:01:24.7]} 45... Re1+
{[%clk 0:00:42.3]} 46. Kf2 {[%clk 0:01:20.2]} 46... Rh1 {[%clk 0:00:42.7]} 47.
Kg2 {[%clk 0:01:21]} 47... Re1 {[%clk 0:00:43.2]} 48. Bf6 {[%clk 0:01:19.3]}
48... Re2+ {[%clk 0:00:43.2]} 49. Kg3 {[%clk 0:01:18.5]} 49... Re1 {[%clk
0:00:39.6]} 50. Ne5 {[%clk 0:01:18.6]} 50... Re2 {[%clk 0:00:40.4]} 51. Nd3
{[%clk 0:01:14.7]} 51... Re3 {[%clk 0:00:39.2]} 52. Nf2 {[%clk 0:01:14.2]} 52...
Re2 {[%clk 0:00:38.6]} 53. Bd4 {[%clk 0:01:13.9]} 53... Re1 {[%clk 0:00:39.1]}
54. Kf4 {[%clk 0:01:13.2]} 54... Kg8 {[%clk 0:00:40.1]} 55. h4 {[%clk
0:01:11.6]} 55... Kf7 {[%clk 0:00:41]} 56. Nd3 {[%clk 0:01:10.5]} 56... Rd1
{[%clk 0:00:37.9]} 57. Ke3 {[%clk 0:01:10]} 57... Ke6 {[%clk 0:00:38.3]} 58. Ke4
{[%clk 0:01:09.2]} 58... Rh1 {[%clk 0:00:37]} 59. Ne5 {[%clk 0:01:07.5]} 59...
Rxh4+ {[%clk 0:00:37.2]} 60. f4 {[%clk 0:01:08.3]} 60... Rh1 {[%clk 0:00:35]}
61. Nxg6 {[%clk 0:01:09.5]} 61... Re1+ {[%clk 0:00:36]} 62. Be3 {[%clk
0:01:08.3]} 62... Kf7 {[%clk 0:00:37.2]} 63. f5 {[%clk 0:01:09.4]} 63... Rh1
{[%clk 0:00:37.4]} 64. Ne5+ {[%clk 0:01:10.3]} 64... Kg8 {[%clk 0:00:38.7]} 65.
f6 {[%clk 0:01:09.5]} 65... h4 {[%clk 0:00:39.9]} 66. g6 {[%clk 0:01:08.9]} 1-0

[Event "*** Titled Tuesday Blitz"]
[Site "Chess.com"]
[Date "2018.06.05"]
[Round "3"]
[White "nabukatnezarr"]
[Black "Orest_Vovk"]
[Result "1-0"]
[WhiteElo "2339"]
[BlackElo "2393"]
[TimeControl "180+2"]
[EndTime "13:42:09 PDT"]
[Termination "nabukatnezarr won by resignation"]

1. Nf3 {[%clk 0:03:01.9]} 1... h6 {[%clk 0:02:58.8]} 2. e4 {[%clk 0:02:56.7]}
2... g5 {[%clk 0:02:59.7]} 3. d4 {[%clk 0:02:55.7]} 3... Bg7 {[%clk 0:03:01.1]}
4. c3 {[%clk 0:02:53.6]} 4... d6 {[%clk 0:03:00.6]} 5. Bd3 {[%clk 0:02:53.3]}
5... g4 {[%clk 0:03:00.9]} 6. Nfd2 {[%clk 0:02:47.5]} 6... c5 {[%clk 0:03:00.8]}
7. d5 {[%clk 0:02:43.2]} 7... Nf6 {[%clk 0:02:57.1]} 8. c4 {[%clk 0:02:38.2]}
8... Nbd7 {[%clk 0:02:57]} 9. O-O {[%clk 0:02:37.2]} 9... Ne5 {[%clk 0:02:57.5]}
10. Qc2 {[%clk 0:02:35.9]} 10... Nxd3 {[%clk 0:02:57.4]} 11. Qxd3 {[%clk
0:02:37.8]} 11... Nd7 {[%clk 0:02:58.4]} 12. Nc3 {[%clk 0:02:36.6]} 12... Ne5
{[%clk 0:02:50.6]} 13. Qe2 {[%clk 0:02:34.7]} 13... h5 {[%clk 0:02:47.3]} 14.
Nb3 {[%clk 0:02:27.6]} 14... Bd7 {[%clk 0:02:46.1]} 15. Bf4 {[%clk 0:02:25.6]}
15... Ng6 {[%clk 0:02:46.3]} 16. Bg5 {[%clk 0:02:24.9]} 16... Be5 {[%clk
0:02:45.9]} 17. Nc1 {[%clk 0:02:19.4]} 17... f6 {[%clk 0:02:42.5]} 18. Be3
{[%clk 0:02:19.7]} 18... Bxc3 {[%clk 0:02:24.1]} 19. bxc3 {[%clk 0:02:19.9]}
19... Ne5 {[%clk 0:02:25.6]} 20. Bf4 {[%clk 0:02:07.6]} 20... Qa5 {[%clk
0:02:24.4]} 21. Bxe5 {[%clk 0:02:08.3]} 21... fxe5 {[%clk 0:02:24.3]} 22. Rb1
{[%clk 0:02:05.2]} 22... O-O-O {[%clk 0:02:24.9]} 23. Nb3 {[%clk 0:02:03.4]}
23... Qa4 {[%clk 0:02:12.3]} 24. Nd2 {[%clk 0:01:26.3]} 24... Rdf8 {[%clk
0:02:07.7]} 25. Rb3 {[%clk 0:01:23.4]} 25... h4 {[%clk 0:01:36.7]} 26. Rfb1
{[%clk 0:01:23.2]} 26... b6 {[%clk 0:01:31.1]} 27. Nf1 {[%clk 0:01:21.5]} 27...
Kc7 {[%clk 0:01:23.2]} 28. Ne3 {[%clk 0:01:17.8]} 28... Rf4 {[%clk 0:01:21.8]}
29. Qb2 {[%clk 0:01:08.3]} 29... Qa6 {[%clk 0:00:58.3]} 30. a4 {[%clk
0:00:59.4]} 30... Rxe4 {[%clk 0:00:33]} 31. a5 {[%clk 0:00:59.7]} 31... Rb8
{[%clk 0:00:33.2]} 32. axb6+ {[%clk 0:00:57.3]} 32... Rxb6 {[%clk 0:00:29.5]}
33. Rxb6 {[%clk 0:00:56.9]} 33... axb6 {[%clk 0:00:30.2]} 34. Ra1 {[%clk
0:00:55.3]} 34... Qb7 {[%clk 0:00:30.7]} 35. g3 {[%clk 0:00:52.1]} 35... hxg3
{[%clk 0:00:26.7]} 36. hxg3 {[%clk 0:00:54]} 36... b5 {[%clk 0:00:27.5]} 37. Qb1
{[%clk 0:00:48.5]} 37... Rxe3 {[%clk 0:00:20.8]} 38. fxe3 {[%clk 0:00:49.6]}
38... bxc4 {[%clk 0:00:18]} 39. Qa2 {[%clk 0:00:46.1]} 39... Bf5 {[%clk
0:00:09.2]} 40. Qa5+ {[%clk 0:00:34]} 40... Kc8 {[%clk 0:00:07.8]} 41. Qa4
{[%clk 0:00:24.2]} 41... Kd8 {[%clk 0:00:04.2]} 42. Qxc4 {[%clk 0:00:20.5]}
42... Ke8 {[%clk 0:00:05.3]} 43. Qa4+ {[%clk 0:00:20.5]} 43... Kf7 {[%clk
0:00:05.8]} 44. Rf1 {[%clk 0:00:21.4]} 44... Qc8 {[%clk 0:00:04.9]} 45. e4
{[%clk 0:00:21.8]} 45... c4 {[%clk 0:00:05.7]} 46. Rxf5+ {[%clk 0:00:22.3]}
46... Kg6 {[%clk 0:00:06.1]} 47. Qd1 {[%clk 0:00:21.2]} 47... Qc5+ {[%clk
0:00:06.5]} 48. Kg2 {[%clk 0:00:22.7]} 48... Qe3 {[%clk 0:00:05.1]} 49. Qxg4+
{[%clk 0:00:24]} 1-0

[Event "*** Titled Tuesday Blitz"]
[Site "Chess.com"]
[Date "2018.06.05"]
[Round "3"]
[White "Terrordelcaribe94"]
[Black "GhostOfGreenval"]
[Result "1-0"]
[WhiteElo "2355"]
[BlackElo "2447"]
[TimeControl "180+2"]
[EndTime "13:42:10 PDT"]
[Termination "Terrordelcaribe94 won by resignation"]

1. d4 {[%clk 0:03:01.8]} 1... Nf6 {[%clk 0:03:00.9]} 2. Bf4 {[%clk 0:03:02.8]}
2... g6 {[%clk 0:02:57.4]} 3. Nc3 {[%clk 0:03:03.4]} 3... Bg7 {[%clk 0:02:59]}
4. e4 {[%clk 0:03:04.5]} 4... d6 {[%clk 0:02:57.8]} 5. Qd2 {[%clk 0:03:04.9]}
5... c6 {[%clk 0:02:40.8]} 6. Bh6 {[%clk 0:03:05.7]} 6... Bxh6 {[%clk
0:02:33.7]} 7. Qxh6 {[%clk 0:03:07.6]} 7... Nbd7 {[%clk 0:02:22.7]} 8. Nf3
{[%clk 0:03:02.5]} 8... Qa5 {[%clk 0:02:17]} 9. Ng5 {[%clk 0:02:43.7]} 9... Nf8
{[%clk 0:01:18]} 10. h4 {[%clk 0:01:55.9]} 10... Rg8 {[%clk 0:00:59]} 11. Be2
{[%clk 0:01:52.7]} 11... b5 {[%clk 0:00:33.2]} 12. O-O-O {[%clk 0:01:35.1]}
12... b4 {[%clk 0:00:33]} 13. Nb1 {[%clk 0:01:36.4]} 13... e5 {[%clk 0:00:15.3]}
14. f3 {[%clk 0:01:02.7]} 14... Qxa2 {[%clk 0:00:13.5]} 15. dxe5 {[%clk
0:00:31.1]} 15... dxe5 {[%clk 0:00:15.4]} 16. h5 {[%clk 0:00:32.6]} 16... Ba6
{[%clk 0:00:14.1]} 17. Bxa6 {[%clk 0:00:23.6]} 17... Qxa6 {[%clk 0:00:16]} 18.
hxg6 {[%clk 0:00:24.3]} 18... hxg6 {[%clk 0:00:17.6]} 19. Qh3 {[%clk 0:00:19.2]}
19... Qb6 {[%clk 0:00:12.2]} 20. Rd3 {[%clk 0:00:19.4]} 20... a6 {[%clk
0:00:04.7]} 21. Rhd1 {[%clk 0:00:19]} 21... Ke7 {[%clk 0:00:05.8]} 22. Nd2
{[%clk 0:00:20]} 22... Qb5 {[%clk 0:00:04.6]} 23. Nb3 {[%clk 0:00:20.9]} 23...
a5 {[%clk 0:00:03.8]} 24. f4 {[%clk 0:00:14.6]} 24... exf4 {[%clk 0:00:03]} 25.
e5 {[%clk 0:00:15.9]} 25... Qxe5 {[%clk 0:00:03.4]} 26. Nf3 {[%clk 0:00:17.4]}
26... Qe6 {[%clk 0:00:03.6]} 27. Re1 {[%clk 0:00:18.7]} 27... a4 {[%clk
0:00:04.6]} 28. Rxe6+ {[%clk 0:00:18.8]} 28... Nxe6 {[%clk 0:00:06.5]} 29. Nbd4
{[%clk 0:00:19.2]} 29... Nc5 {[%clk 0:00:07.7]} 30. Nxc6+ {[%clk 0:00:20.4]}
30... Kf8 {[%clk 0:00:08.6]} 31. Rd6 {[%clk 0:00:19.8]} 31... Kg7 {[%clk
0:00:09.2]} 32. Rxf6 {[%clk 0:00:20.7]} 32... Kxf6 {[%clk 0:00:10.3]} 33. Qh4+
{[%clk 0:00:22]} 33... Kg7 {[%clk 0:00:11.4]} 34. Qxf4 {[%clk 0:00:23.2]} 34...
Ne6 {[%clk 0:00:09.8]} 35. Qe5+ {[%clk 0:00:24.3]} 35... Kh7 {[%clk 0:00:10.9]}
36. Qf6 {[%clk 0:00:23.6]} 36... Rg7 {[%clk 0:00:08]} 37. Nxb4 {[%clk
0:00:24.1]} 37... a3 {[%clk 0:00:08.5]} 38. bxa3 {[%clk 0:00:25]} 38... Rxa3
{[%clk 0:00:10.4]} 39. Nd3 {[%clk 0:00:26.2]} 39... Ra2 {[%clk 0:00:10.5]} 40.
Nde5 {[%clk 0:00:26.6]} 40... Ra7 {[%clk 0:00:10.9]} 41. Ng4 {[%clk 0:00:27.2]}
41... Kg8 {[%clk 0:00:06.5]} 42. Nh6+ {[%clk 0:00:27.6]} 42... Kf8 {[%clk
0:00:04.4]} 43. Ne5 {[%clk 0:00:29]} 43... g5 {[%clk 0:00:02.8]} 44. Nf5 {[%clk
0:00:29.2]} 44... Rh7 {[%clk 0:00:03.5]} 45. Ng6+ {[%clk 0:00:27]} 45... Ke8
{[%clk 0:00:04.9]} 46. Nd6+ {[%clk 0:00:28.2]} 46... Kd7 {[%clk 0:00:06.5]} 47.
Nxf7 {[%clk 0:00:29.6]} 47... Rh1+ {[%clk 0:00:04.1]} 48. Kd2 {[%clk 0:00:30.5]}
48... Nc5 {[%clk 0:00:04.1]} 49. Qd6+ {[%clk 0:00:30.3]} 49... Ke8 {[%clk
0:00:04.7]} 50. Qf8+ {[%clk 0:00:30]} 50... Kd7 {[%clk 0:00:05.8]} 51. Qxc5
{[%clk 0:00:31.2]} 1-0

[Event "*** Titled Tuesday Blitz"]
[Site "Chess.com"]
[Date "2018.06.05"]
[Round "3"]
[White "nihalsarin"]
[Black "Aleksandr_Kholin"]
[Result "1/2-1/2"]
[WhiteElo "2743"]
[BlackElo "2431"]
[TimeControl "180+2"]
[EndTime "13:42:15 PDT"]
[Termination "Game drawn - insufficient material"]

1. e4 {[%clk 0:03:01.9]} 1... c5 {[%clk 0:02:59.7]} 2. Nf3 {[%clk 0:03:02]} 2...
d6 {[%clk 0:03:01]} 3. Bb5+ {[%clk 0:03:03.5]} 3... Nd7 {[%clk 0:03:00.6]} 4.
O-O {[%clk 0:03:03.8]} 4... a6 {[%clk 0:03:01.6]} 5. Bxd7+ {[%clk 0:03:03.7]}
5... Bxd7 {[%clk 0:03:03.2]} 6. d4 {[%clk 0:03:05.3]} 6... cxd4 {[%clk
0:03:03.4]} 7. Qxd4 {[%clk 0:03:07.2]} 7... Nf6 {[%clk 0:03:03.4]} 8. Nc3 {[%clk
0:03:08.1]} 8... Rc8 {[%clk 0:03:00.1]} 9. e5 {[%clk 0:03:08]} 9... dxe5 {[%clk
0:02:57.5]} 10. Nxe5 {[%clk 0:03:09.9]} 10... Bc6 {[%clk 0:02:57.3]} 11. Qxd8+
{[%clk 0:03:10.1]} 11... Rxd8 {[%clk 0:02:55]} 12. Nxc6 {[%clk 0:03:11.6]} 12...
bxc6 {[%clk 0:02:56.9]} 13. Be3 {[%clk 0:03:13.1]} 13... Nd5 {[%clk 0:02:55.1]}
14. Bd4 {[%clk 0:03:11]} 14... f6 {[%clk 0:02:55.5]} 15. f4 {[%clk 0:03:06.3]}
15... e6 {[%clk 0:02:56.7]} 16. Rad1 {[%clk 0:03:04]} 16... Bb4 {[%clk
0:02:50.2]} 17. Ne4 {[%clk 0:02:59.3]} 17... Nxf4 {[%clk 0:02:43.5]} 18. Rxf4
{[%clk 0:02:38.4]} 18... e5 {[%clk 0:02:43.1]} 19. c3 {[%clk 0:02:39.8]} 19...
Be7 {[%clk 0:02:40.9]} 20. Rff1 {[%clk 0:02:39.4]} 20... exd4 {[%clk 0:02:41.4]}
21. cxd4 {[%clk 0:02:41.3]} 21... O-O {[%clk 0:02:35]} 22. Kf2 {[%clk
0:02:37.4]} 22... Rfe8 {[%clk 0:02:36.2]} 23. Rfe1 {[%clk 0:02:37.2]} 23... Kf7
{[%clk 0:02:34.5]} 24. a3 {[%clk 0:02:34.6]} 24... Bf8 {[%clk 0:02:30]} 25. Re2
{[%clk 0:02:35.1]} 25... Rd5 {[%clk 0:02:25.9]} 26. Nc3 {[%clk 0:02:32.9]} 26...
Rf5+ {[%clk 0:02:25.6]} 27. Ke1 {[%clk 0:02:31.7]} 27... Bd6 {[%clk 0:02:17.2]}
28. g3 {[%clk 0:02:29]} 28... Bc7 {[%clk 0:02:11.9]} 29. Rxe8 {[%clk 0:02:29.6]}
29... Kxe8 {[%clk 0:02:13.3]} 30. Ke2 {[%clk 0:02:31.3]} 30... h5 {[%clk
0:02:07.6]} 31. d5 {[%clk 0:02:26.7]} 31... Kd7 {[%clk 0:02:06.6]} 32. Rd3
{[%clk 0:02:10]} 32... h4 {[%clk 0:01:48.7]} 33. dxc6+ {[%clk 0:01:53.8]} 33...
Kxc6 {[%clk 0:01:48.1]} 34. Ne4 {[%clk 0:01:55.3]} 34... hxg3 {[%clk 0:01:46.4]}
35. hxg3 {[%clk 0:01:57.2]} 35... Re5 {[%clk 0:01:46.2]} 36. Kf3 {[%clk
0:01:57.4]} 36... Rd5 {[%clk 0:01:46.3]} 37. Rc3+ {[%clk 0:01:53.4]} 37... Kb6
{[%clk 0:01:47.5]} 38. b4 {[%clk 0:01:53.1]} 38... Be5 {[%clk 0:01:46.5]} 39.
Rb3 {[%clk 0:01:54.3]} 39... Kb5 {[%clk 0:01:41.7]} 40. Re3 {[%clk 0:01:45.3]}
40... Kc4 {[%clk 0:01:37.9]} 41. Nc5 {[%clk 0:01:42.6]} 41... Bd4 {[%clk
0:01:34.9]} 42. Re7 {[%clk 0:01:24.4]} 42... Bxc5 {[%clk 0:01:34.8]} 43. bxc5
{[%clk 0:01:26.3]} 43... Rxc5 {[%clk 0:01:34.5]} 44. Rxg7 {[%clk 0:01:27.8]}
44... Ra5 {[%clk 0:01:31.4]} 45. Rf7 {[%clk 0:01:29.2]} 45... f5 {[%clk
0:01:32.2]} 46. Kf4 {[%clk 0:01:29.8]} 46... Kb3 {[%clk 0:01:33.1]} 47. Rxf5
{[%clk 0:01:29.6]} 47... Rxa3 {[%clk 0:01:34.1]} 48. g4 {[%clk 0:01:31.1]} 48...
a5 {[%clk 0:01:34.9]} 49. g5 {[%clk 0:01:32.1]} 49... a4 {[%clk 0:01:34.9]} 50.
g6 {[%clk 0:01:32.7]} 50... Ra1 {[%clk 0:01:36.4]} 51. Rg5 {[%clk 0:01:21.6]}
51... Rf1+ {[%clk 0:01:35.4]} 52. Ke3 {[%clk 0:01:22.2]} 52... Rf8 {[%clk
0:01:36.6]} 53. g7 {[%clk 0:01:22.5]} 53... Rg8 {[%clk 0:01:37.8]} 54. Kd3
{[%clk 0:01:24]} 54... a3 {[%clk 0:01:39.1]} 55. Rb5+ {[%clk 0:01:25.3]} 55...
Ka4 {[%clk 0:01:40.1]} 56. Rb7 {[%clk 0:01:26.8]} 56... a2 {[%clk 0:01:36.8]}
57. Kc2 {[%clk 0:01:19.8]} 57... a1=N+ {[%clk 0:01:30.1]} 58. Kc3 {[%clk
0:01:13.6]} 58... Nb3 {[%clk 0:01:27.7]} 59. Ra7+ {[%clk 0:01:10.3]} 59... Na5
{[%clk 0:01:27.8]} 60. Kd4 {[%clk 0:01:09.5]} 60... Kb5 {[%clk 0:01:27.3]} 61.
Kd5 {[%clk 0:01:08.7]} 61... Kb6 {[%clk 0:01:24.8]} 62. Rd7 {[%clk 0:01:05.1]}
62... Nc6 {[%clk 0:01:24]} 63. Ke6 {[%clk 0:01:04.4]} 63... Nd8+ {[%clk
0:01:21]} 64. Kf6 {[%clk 0:01:03]} 64... Kc6 {[%clk 0:01:22]} 65. Rd1 {[%clk
0:01:03.1]} 65... Kc7 {[%clk 0:01:22.2]} 66. Re1 {[%clk 0:01:01.4]} 66... Kd7
{[%clk 0:01:22.3]} 67. Re7+ {[%clk 0:01:01.1]} 67... Kd6 {[%clk 0:01:21.5]} 68.
Re1 {[%clk 0:01:01]} 68... Kd7 {[%clk 0:01:22.3]} 69. Re2 {[%clk 0:01:02.5]}
69... Ne6 {[%clk 0:01:18.9]} 70. Rxe6 {[%clk 0:00:53]} 70... Rxg7 {[%clk
0:01:19.9]} 71. Kxg7 {[%clk 0:00:53.9]} 71... Kxe6 {[%clk 0:01:20.9]} 1/2-1/2